bitfinex-derivatives/quotes_SOLF0:USTF0_20240910
["timestamp","ask_amount","ask_price","bid_price","bid_amount"]
[1725994063025,17.45,137.31,137.21,17.45]
[1725994063337,17.45,137.32,137.21,17.45]
[1725994064432,18.8053,137.32,137.21,17.45]
[1725994064621,2.7012,137.33,137.25,17.45]
[1725994064820,2.7012,137.33,137.25,21.08801893]
[1725994065528,17.45,137.3,137.09,225.0]
[1725994065733,17.45,137.3,137.18,17.45]
[1725994065734,1.3188,137.29,137.18,17.45]
[1725994066233,4.9605,137.29,137.18,21.17632575]
[1725994067118,3.642,137.28,137.18,21.17632575]
[1725994067530,2.6668,137.27,137.18,17.45]
[1725994067931,1.3188,137.29,137.21,17.45]
[1725994068234,2.7396,137.31,137.21,17.45]
[1725994068728,3.6421,137.28,137.19,0.2247]
[1725994068934,18.8347,137.3,137.19,0.2247]
[1725994069135,1.3847,137.3,137.19,0.2247]
[1725994069321,1.3847,137.3,137.21,17.45]
[1725994069832,2.7396,137.31,137.23,17.45]
[1725994070027,2.7396,137.31,137.21,17.45]
[1725994070220,20.1896,137.31,137.21,17.45]
[1725994070829,20.1896,137.31,137.23,3.6432]
[1725994071135,17.45,137.29,137.19,3.94655382]
[1725994071624,17.45,137.29,137.17,17.45]
[1725994071819,17.45,137.29,137.17,21.00268911]
[1725994072033,17.45,137.29,137.2,3.644]
[1725994072224,17.45,137.26,137.17,17.45]
[1725994072427,17.45,137.26,137.14,0.225]
[1725994072629,1.3847,137.32,137.05,32.12569132]
[1725994072630,17.45,137.23,137.12,3.64706311]
[1725994072833,17.45,137.23,137.12,17.45]
[1725994073026,1.3508,137.22,137.12,17.45]
[1725994073223,1.3508,137.22,137.07,5.9363234]
[1725994073431,1.3508,137.22,137.13,17.45]
[1725994074127,1.3508,137.22,137.15,3.6452]
[1725994074330,1.3508,137.22,137.13,17.45]
[1725994074921,1.3508,137.22,137.17,3.6448]
[1725994075725,1.3508,137.22,137.18,3.6446]
[1725994076027,1.3508,137.22,137.13,17.45]
[1725994076229,1.3508,137.22,137.19,3.6441]
[1725994076732,18.8008,137.22,137.12,0.2248]
[1725994077726,18.8008,137.22,137.16,3.645]
[1725994077926,18.8008,137.22,137.12,0.2248]
[1725994078125,18.8008,137.22,137.11,17.45]
[1725994078330,18.8008,137.22,137.14,3.6456]
[1725994078533,17.45,137.2,137.14,3.6456]
[1725994078726,17.45,137.2,137.11,17.45]
[1725994078921,17.45,137.2,137.11,21.0981954]
[1725994079431,1.3508,137.22,137.16,3.645]
[1725994079826,1.3508,137.22,137.11,21.0981954]
[1725994080032,1.3508,137.22,137.13,17.45]
[1725994080429,20.0566,137.25,137.13,17.45]
[1725994080834,20.0566,137.25,137.13,21.16308786]
[1725994081040,17.45,137.22,137.11,17.45]
[1725994081537,17.45,137.22,137.18,3.6444]
[1725994081731,17.45,137.22,137.13,17.45]
[1725994081931,20.0566,137.25,137.2,3.6439]
[1725994082135,2.6066,137.25,137.2,3.6439]
[1725994082730,2.6066,137.25,137.14,27.99]
[1725994082933,27.99,137.24,137.13,0.0953]
[1725994083937,27.99,137.24,137.19,3.6443]
[1725994086233,27.99,137.24,137.13,0.0953]
[1725994086436,27.99,137.22,137.08,27.99]
[1725994086635,27.99,137.2,137.08,27.99]
[1725994086838,2.6954,137.19,137.12,3.6462]
[1725994087034,2.6954,137.19,137.08,27.99]
[1725994087244,2.6954,137.19,137.16,3.6451]
[1725994087451,1.3082,137.21,137.13,27.99]
[1725994087836,1.3082,137.21,137.16,3.6449]
[1725994088034,1.3082,137.21,137.13,27.99]
[1725994088232,1.3082,137.21,137.17,3.6446]
[1725994088434,1.3082,137.21,137.13,31.62059796]
[1725994088635,29.2904,137.26,137.13,31.62059796]
[1725994088837,27.99,137.22,137.07,7.295]
[1725994089041,1.395,137.21,137.1,27.99]
[1725994089237,1.395,137.21,137.12,27.99]
[1725994089448,1.395,137.21,137.18,3.6445]
[1725994089638,1.395,137.21,137.12,27.99]
[1725994089840,1.3082,137.25,137.14,27.99]
[1725994090041,2.584,137.25,137.14,27.99]
[1725994090451,2.584,137.25,137.22,3.6434]
[1725994090745,1.3004,137.26,137.16,27.99]
[1725994090942,1.2758,137.29,137.23,27.99]
[1725994091142,1.3304,137.31,137.23,27.99]
[1725994091342,1.3184,137.33,137.25,27.99]
[1725994092249,1.2758,137.34,137.25,27.99]
[1725994092649,1.2758,137.34,137.24,3.59501421]
[1725994092849,1.2758,137.34,137.23,27.99]
[1725994093244,1.2758,137.34,137.26,27.99]
[1725994093651,1.2758,137.34,137.26,31.63239376]
[1725994093851,1.3098,137.36,137.28,27.99]
[1725994094354,2.5931,137.38,137.33,3.6404]
[1725994094548,2.5931,137.38,137.28,27.99]
[1725994094749,2.5931,137.38,137.28,28.1232]
[1725994095451,2.5931,137.38,137.3,27.99]
[1725994096056,2.5931,137.38,137.27,27.99]
[1725994096057,30.5831,137.38,137.27,27.99]
[1725994096551,30.5831,137.38,137.29,27.99]
[1725994096552,2.5931,137.38,137.29,27.99]
[1725994097058,2.5931,137.38,137.3,3.64119746]
[1725994097246,1.3865,137.4,137.31,27.99]
[1725994097651,2.5479,137.42,137.33,27.99]
[1725994098758,1.2823,137.42,137.33,27.99]
[1725994098956,1.2823,137.42,137.33,31.58322651]
[1725994099363,27.99,137.41,137.28,0.2244]
[1725994099654,27.99,137.39,137.28,0.2244]
[1725994099854,1.282,137.38,137.28,0.2244]
[1725994100455,3.6398,137.37,137.28,0.2244]
[1725994100648,1.282,137.38,137.28,0.2244]
[1725994101451,1.282,137.38,137.29,27.99]
[1725994101657,1.282,137.38,137.31,27.99]
[1725994101852,1.3052,137.41,137.31,27.99]
[1725994104453,3.6388,137.4,137.31,27.99]
[1725994104960,3.6388,137.4,137.28,0.2244]
[1725994104961,29.2952,137.41,137.29,27.99]
[1725994105356,27.99,137.38,137.28,0.2244]
[1725994105556,3.6398,137.37,137.28,0.2244]
[1725994105858,27.99,137.38,137.28,3.93334924]
[1725994106057,31.6295,137.38,137.28,0.2244]
[1725994106262,27.99,137.38,137.28,0.2244]
[1725994106452,29.2952,137.41,137.29,31.69130342]
[1725994106651,29.2952,137.41,137.29,27.99]
[1725994106963,3.6388,137.4,137.29,27.99]
[1725994107162,29.2952,137.41,137.3,3.69638045]
[1725994107469,32.9339,137.41,137.3,3.69638045]
[1725994108058,1.3052,137.41,137.31,27.99]
[1725994108654,1.3052,137.41,137.33,27.99]
[1725994109262,2.552,137.42,137.33,27.99]
[1725994114360,30.542,137.42,137.31,27.99]
[1725994114560,30.542,137.42,137.29,27.99]
[1725994114754,3.6391,137.39,137.29,27.99]
[1725994114958,27.99,137.4,137.29,27.99]
[1725994115162,1.3317,137.38,137.29,27.99]
[1725994115365,4.9711,137.38,137.29,27.99]
[1725994115571,1.3317,137.38,137.29,27.99]
[1725994116465,3.6389,137.4,137.29,27.99]
[1725994116866,3.6389,137.4,137.31,27.99]
[1725994122975,3.6391,137.39,137.31,27.99]
[1725994126069,3.6391,137.39,137.31,17.48]
[1725994127375,21.1188,137.4,137.31,17.48]
[1725994128269,3.639,137.39,137.31,17.48]
[1725994128465,17.48,137.4,137.31,17.48]
[1725994128866,3.6392,137.39,137.31,17.48]
[1725994129071,17.48,137.39,137.28,3.88436649]
[1725994129374,17.48,137.39,137.29,17.48]
[1725994129575,3.6396,137.38,137.29,17.48]
[1725994129775,17.48,137.39,137.29,17.48]
[1725994130175,18.8739,137.41,137.29,17.48]
[1725994130479,18.8739,137.41,137.31,17.48]
[1725994130680,3.6389,137.4,137.31,17.48]
[1725994131566,22.5125,137.41,137.31,17.48]
[1725994132370,18.8739,137.41,137.31,17.48]
[1725994137081,1.3939,137.41,137.31,17.48]
[1725994137481,20.032,137.42,137.31,17.48]
[1725994142792,20.032,137.42,137.33,17.48]
[1725994143088,2.552,137.42,137.35,17.48]
[1725994143275,2.552,137.42,137.33,17.48]
[1725994143473,20.032,137.42,137.33,17.48]
[1725994144782,2.552,137.42,137.33,17.48]
[1725994145397,2.552,137.42,137.35,17.48]
[1725994145789,1.2823,137.42,137.35,17.48]
[1725994146190,1.2823,137.42,137.35,21.04279577]
[1725994146591,20.1343,137.46,137.35,21.04279577]
[1725994146786,21.4342,137.46,137.35,21.04279577]
[1725994147091,21.4342,137.46,137.4,3.6387]
[1725994147392,21.4342,137.46,137.37,17.48]
[1725994147888,3.9542,137.46,137.37,17.48]
[1725994148191,21.4342,137.46,137.35,21.04279577]
[1725994148990,3.9542,137.46,137.39,3.639]
[1725994149188,21.4342,137.46,137.35,21.04279577]
[1725994149386,21.4342,137.46,137.37,17.48]
[1725994150800,21.4342,137.46,137.4,3.6387]
[1725994151282,21.4342,137.46,137.39,3.6389]
[1725994151487,17.48,137.45,137.34,0.2109]
[1725994151686,17.48,137.45,137.35,3.56872451]
[1725994151893,17.48,137.45,137.35,17.48]
[1725994152203,3.9542,137.46,137.37,17.48]
[1725994153387,3.9542,137.46,137.35,21.19796738]
[1725994154290,17.48,137.44,137.35,21.19796738]
[1725994155397,21.12834364,137.44,137.35,17.48]
[1725994155598,17.48,137.42,137.33,17.48]
[1725994156693,17.48,137.42,137.31,17.48]
[1725994157292,17.48,137.42,137.33,17.48]
[1725994158599,17.48,137.44,137.33,17.48]
[1725994158984,3.62931411,137.43,137.33,17.48]
[1725994159397,3.62931411,137.43,137.34,5.91915095]
[1725994159599,3.62931411,137.43,137.35,3.57215669]
[1725994159798,3.62931411,137.43,137.33,17.48]
[1725994160003,17.48,137.44,137.33,17.48]
[1725994160493,21.4342,137.46,137.35,17.48]
[1725994160692,20.1514,137.46,137.35,21.16428717]
[1725994160901,21.446,137.46,137.36,5.91457274]
[1725994161190,21.446,137.46,137.35,21.16428717]
[1725994161395,21.446,137.46,137.36,5.91156589]
[1725994161589,17.48,137.44,137.35,17.48]
[1725994161794,3.73015873,137.43,137.35,17.48]
[1725994162296,3.73015873,137.43,137.33,17.48]
[1725994162496,17.48,137.42,137.34,5.91083668]
[1725994162701,3.67027941,137.41,137.31,17.48]
[1725994162999,17.48,137.42,137.32,11.83140547]
[1725994163195,1.2933,137.4,137.33,5.91261926]
[1725994163385,1.2933,137.4,137.34,5.91261926]
[1725994163591,1.3448,137.39,137.32,5.91903498]
[1725994163894,1.3448,137.39,137.33,5.91255888]
[1725994164095,1.3448,137.39,137.34,5.91255888]
[1725994164292,1.3448,137.39,137.32,5.91900349]
[1725994164487,1.3448,137.39,137.33,5.91252742]
[1725994164692,1.3448,137.39,137.34,5.91252742]
[1725994164894,1.2933,137.4,137.35,5.91252742]
[1725994165093,1.2933,137.4,137.33,17.48]
[1725994165293,1.2933,137.4,137.34,5.91086455]
[1725994165496,1.2933,137.4,137.35,5.91086455]
[1725994165801,1.2724,137.39,137.29,17.6898]
[1725994166098,1.2724,137.39,137.3,21.30640678]
[1725994166298,1.2724,137.39,137.31,11.83397725]
[1725994166491,1.2724,137.39,137.32,5.91370879]
[1725994166698,2.6041,137.39,137.29,17.48]
[1725994166895,2.6041,137.39,137.17,57.33062644]
[1725994166896,17.48,137.35,137.3,5.91603475]
[1725994167090,17.48,137.35,137.22,0.1238]
[1725994167091,17.48,137.33,137.23,32.88070135]
[1725994167396,17.48,137.33,137.24,21.32028632]
[1725994167600,3.6417,137.29,137.25,5.91958497]
[1725994167799,17.48,137.31,137.26,5.91958497]
[1725994167993,17.48,137.29,137.22,5.92602117]
[1725994168299,1.3454,137.28,137.18,13.14022499]
[1725994168492,4.9874,137.28,137.19,11.85418198]
[1725994168689,4.9874,137.28,137.2,11.85418198]
[1725994168895,1.3454,137.28,137.21,5.92596053]
[1725994169095,1.3454,137.28,137.22,5.92596053]
[1725994169400,1.3454,137.28,137.19,5.92758]
[1725994169592,1.3454,137.28,137.2,5.92606847]
[1725994169789,1.3454,137.28,137.21,5.92606847]
[1725994169993,1.3454,137.28,137.19,17.48]
[1725994170188,1.3454,137.28,137.2,5.92478406]
[1725994170388,1.3454,137.28,137.21,5.92478406]
[1725994170695,1.3454,137.28,137.17,3.7221345]
[1725994170696,1.3454,137.28,137.17,21.2021345]
[1725994170897,1.3454,137.28,137.18,11.85501134]
[1725994171101,1.3454,137.28,137.19,5.92599547]
[1725994171295,1.3454,137.28,137.2,5.92599547]
[1725994171495,1.3454,137.28,137.19,5.92599547]
[1725994171705,1.3454,137.28,137.2,5.9267228]
[1725994171905,1.3454,137.28,137.21,3.6436]
[1725994172799,1.3454,137.28,137.18,5.92601392]
[1725994172800,1.3454,137.28,137.19,5.92601392]
[1725994172999,1.3454,137.28,137.2,5.92601392]
[1725994173203,1.3454,137.28,137.19,5.92601392]
[1725994173601,1.3454,137.28,137.18,5.92601392]
[1725994173808,1.3454,137.28,137.17,21.2021345]
[1725994173998,1.3454,137.28,137.19,5.9240084]
[1725994174403,1.3454,137.28,137.18,5.9240084]
[1725994174603,1.3454,137.28,137.18,23.4040084]
[1725994174803,1.3454,137.28,137.18,17.48]
[1725994175702,1.3454,137.28,137.18,23.40570167]
[1725994176710,17.48,137.27,137.16,17.48]
[1725994177009,1.3829,137.26,137.17,5.93211084]
[1725994177204,1.3829,137.26,137.16,17.48]
[1725994177410,1.3783,137.25,137.16,17.48]
[1725994177802,1.3783,137.25,137.16,23.4116093]
[1725994178003,1.3783,137.25,137.17,5.9316093]
[1725994178209,1.3783,137.25,137.16,17.48]
[1725994179216,18.8583,137.25,137.16,17.48]
[1725994179914,1.3783,137.25,137.17,3.57997437]
[1725994180505,1.3783,137.25,137.14,0.1263]
[1725994180706,1.3783,137.25,137.18,17.48]
[1725994180907,1.3454,137.28,137.22,3.6434]
[1725994181106,17.48,137.27,137.15,17.48]
[1725994181317,17.48,137.25,137.15,17.48]
[1725994181513,17.48,137.25,137.15,23.41461963]
[1725994181818,17.48,137.25,137.16,5.93429123]
[1725994182010,17.48,137.25,137.15,23.41429123]
[1725994182217,17.48,137.26,137.17,17.48]
[1725994182421,17.48,137.26,137.17,21.20666141]
[1725994183207,1.3454,137.28,137.21,3.6436]
[1725994183410,1.3454,137.28,137.17,21.20666141]
[1725994183613,1.3454,137.28,137.19,17.48]
[1725994184012,1.3454,137.28,137.19,17.5683]
[1725994184321,2.6804,137.3,137.25,3.6425]
[1725994184923,183.92769831,137.33,137.23,17.48]
[1725994185114,166.44769831,137.33,137.23,17.48]
[1725994185314,166.44769831,137.33,137.27,3.642]
[1725994185514,1.3879,137.34,137.27,3.642]
[1725994185818,1.3879,137.34,137.25,17.48]
[1725994186016,1.3879,137.34,137.24,3.62338052]
[1725994186017,1.3879,137.34,137.27,17.48]
[1725994186213,17.48,137.37,137.27,17.48]
[1725994186419,1.3879,137.38,137.27,17.48]
[1725994186420,1.3879,137.38,137.28,3.58111685]
[1725994186618,1.3879,137.38,137.29,17.48]
[1725994187423,2.6351,137.39,137.31,17.48]
[1725994187424,1.3315,137.39,137.31,17.48]
[1725994187625,17.48,137.43,137.33,17.48]
[1725994187626,20.1228,137.43,137.33,17.48]
[1725994187919,3.9123,137.43,137.33,17.48]
[1725994188125,3.9123,137.43,137.37,3.6395]
[1725994188313,3.9123,137.43,137.33,17.48]
[1725994188716,3.9123,137.43,137.35,17.48]
[1725994188922,2.6207,137.43,137.35,17.48]
[1725994189120,2.6207,137.43,137.35,21.07800917]
[1725994189518,2.6207,137.43,137.35,17.48]
[1725994190523,2.6207,137.43,137.35,21.08856585]
[1725994192223,17.48,137.47,137.35,21.08856585]
[1725994192423,17.48,137.47,137.36,0.2149]
[1725994192820,17.48,137.47,137.37,17.48]
[1725994193133,21.04753545,137.47,137.37,17.48]
[1725994193919,17.48,137.47,137.37,17.48]
[1725994198735,21.05559407,137.49,137.39,17.48]
[1725994198927,17.48,137.49,137.39,17.48]
[1725994200544,17.48,137.47,137.37,17.48]
[1725994200745,17.48,137.45,137.34,17.48]
[1725994201039,1.3552,137.44,137.34,17.48]
[1725994202041,1.3552,137.44,137.36,17.48]
[1725994202354,1.3552,137.44,137.4,3.6386]
[1725994202538,1.3552,137.44,137.36,17.48]
[1725994202732,1.3552,137.44,137.39,3.6389]
[1725994203141,1.3552,137.44,137.36,17.48]
[1725994203443,1.3552,137.44,137.4,3.6386]
[1725994204947,1.3552,137.44,137.33,17.48]
[1725994205139,1.2911,137.43,137.33,17.48]
[1725994205339,1.2911,137.43,137.36,3.6396]
[1725994205540,1.2911,137.43,137.33,17.48]
[1725994206342,1.2911,137.43,137.38,3.6393]
[1725994206540,1.2911,137.43,137.33,17.48]
[1725994206740,1.2911,137.43,137.36,17.48]
[1725994206948,1.2911,137.43,137.38,3.6393]
[1725994207253,1.2911,137.43,137.36,17.48]
[1725994207747,1.2911,137.43,137.38,3.6393]
[1725994208248,1.2911,137.43,137.36,17.48]
[1725994208441,1.2911,137.43,137.38,3.6393]
[1725994209240,1.2911,137.43,137.39,3.639]
[1725994210046,1.3552,137.44,137.36,17.48]
[1725994210252,1.3552,137.44,137.36,17.5681]
[1725994210446,1.3552,137.44,137.41,3.6384]
[1725994211446,1.3552,137.44,137.4,3.6387]
[1725994213055,1.3552,137.44,137.41,3.6385]
[1725994215055,1.3552,137.44,137.42,3.6382]
[1725994215854,1.3552,137.44,137.36,17.5681]
[1725994217054,1.3552,137.44,137.4,3.6386]
[1725994217949,1.3552,137.44,137.41,3.6385]
[1725994218754,1.3552,137.44,137.4,3.6387]
[1725994220248,1.3552,137.44,137.39,3.6389]
[1725994220447,3.6361651,137.43,137.39,3.6389]
[1725994220655,3.6361651,137.43,137.35,3.68057072]
[1725994221062,21.1161651,137.43,137.34,17.48]
[1725994221358,20.088,137.43,137.32,17.48]
[1725994221559,20.088,137.43,137.35,3.6401]
[1725994222158,23.6644723,137.43,137.35,3.6401]
[1725994222555,23.6644723,137.43,137.36,3.6398]
[1725994223658,17.48,137.41,137.36,3.6398]
[1725994224260,17.48,137.41,137.35,3.64]
[1725994225563,17.48,137.41,137.34,3.6403]
[1725994225863,17.48,137.41,137.3,17.5688]
[1725994226064,17.48,137.41,137.35,3.64]
[1725994227158,17.48,137.41,137.34,3.6403]
[1725994227358,17.48,137.41,137.3,17.48]
[1725994227759,17.48,137.41,137.33,3.6405]
[1725994227955,17.48,137.39,137.33,3.6405]
[1725994228157,1.3685,137.38,137.32,3.6408]
[1725994228560,1.376,137.37,137.28,21.19264429]
[1725994228756,1.376,137.37,137.33,3.6405]
[1725994230165,1.376,137.37,137.28,21.19264429]
[1725994230858,1.376,137.37,137.28,17.48]
[1725994231164,20.131,137.37,137.3,3.6413]
[1725994231557,17.48,137.35,137.19,7.2883]
[1725994231760,17.48,137.33,137.22,17.48]
[1725994231959,1.2985,137.32,137.22,17.48]
[1725994233057,1.2985,137.32,137.2,0.2181]
[1725994233058,1.2985,137.32,137.24,17.48]
[1725994233257,1.2985,137.32,137.24,21.06460215]
[1725994233468,17.48,137.29,137.1,225.0]
[1725994233654,2.6348,137.31,137.11,11.79262636]
[1725994233862,2.6348,137.31,137.16,17.48]
[1725994234054,17.48,137.26,137.16,17.48]
[1725994234365,6.3408,137.25,137.16,17.48]
[1725994234570,2.6978,137.25,137.16,17.48]
[1725994234953,3.643,137.24,137.16,17.48]
[1725994235954,3.6437,137.22,137.14,3.56565913]
[1725994236163,18.7637,137.24,137.12,17.48]
[1725994236566,3.6438,137.21,137.12,17.48]
[1725994236763,3.6438,137.21,137.12,21.18168608]
[1725994237459,3.6436,137.22,137.12,3.70168608]
[1725994237662,3.6436,137.22,137.12,21.18168608]
[1725994238062,3.6433,137.23,137.12,21.18168608]
[1725994238273,1.2837,137.24,137.15,17.48]
[1725994238770,4.9269,137.24,137.15,17.48]
[1725994241668,1.2837,137.24,137.15,17.48]
[1725994242571,4.9268,137.24,137.15,17.48]
[1725994242869,1.2837,137.24,137.15,17.48]
[1725994243370,4.9269,137.24,137.15,17.48]
[1725994244271,3.6434,137.23,137.15,17.48]
[1725994244473,1.2837,137.24,137.15,17.48]
[1725994244971,1.2837,137.24,137.12,21.18168608]
[1725994245169,1.2837,137.24,137.12,17.48]
[1725994245371,3.6434,137.23,137.12,17.48]
[1725994245763,1.2837,137.24,137.13,3.72037163]
[1725994245961,17.48,137.23,137.13,3.72037163]
[1725994246169,3.6437,137.22,137.13,3.72037163]
[1725994246368,17.48,137.23,137.13,3.72037163]
[1725994246573,3.6437,137.22,137.13,3.72037163]
[1725994248075,3.6438,137.21,137.12,17.48]
[1725994248277,17.48,137.23,137.12,17.48]
[1725994248463,17.48,137.18,137.06,0.223]
[1725994248668,17.48,137.18,137.07,17.48]
[1725994248864,21.14423623,137.18,137.08,3.71709806]
[1725994249078,24.78903623,137.18,137.08,3.71709806]
[1725994249486,24.78903623,137.18,137.07,17.48]
[1725994250080,3.6445,137.19,137.09,17.48]
[1725994250282,7.36696535,137.19,137.1,3.65280816]
[1725994250475,7.36696535,137.19,137.09,17.48]
[1725994250784,1.2712,137.19,137.09,21.09086797]
[1725994251278,4.87987979,137.19,137.09,21.09086797]
[1725994251485,6.25387979,137.19,137.09,21.09086797]
[1725994251984,2.6452,137.19,137.09,21.09086797]
[1725994252186,1.2837,137.24,137.11,17.48]
[1725994252187,17.48,137.22,137.11,17.48]
[1725994252389,3.6439,137.21,137.11,17.48]
[1725994252580,17.48,137.22,137.11,17.48]
[1725994253187,21.1236,137.22,137.12,0.2246]
[1725994253584,3.6438,137.21,137.12,0.2246]
[1725994255283,21.1237,137.22,137.12,0.2246]
[1725994255488,17.48,137.22,137.12,0.2246]
[1725994255683,17.48,137.22,137.13,17.48]
[1725994255887,6.3466,137.23,137.13,17.48]
[1725994256791,2.7031,137.23,137.15,17.48]
[1725994256982,2.7031,137.23,137.16,3.66814707]
[1725994257585,1.3291,137.23,137.16,3.66814707]
[1725994258183,17.48,137.26,137.15,17.48]
[1725994258383,3.6424,137.27,137.17,17.48]
[1725994258586,17.48,137.28,137.18,3.71444549]
[1725994259083,17.48,137.28,137.19,17.48]
[1725994259284,18.7666,137.3,137.21,17.48]
[1725994259483,1.2866,137.3,137.21,17.48]
[1725994259885,1.2866,137.3,137.22,3.61897033]
[1725994260892,17.48,137.32,137.23,17.48]
[1725994261093,17.48,137.32,137.23,21.05742323]
[1725994261388,1.325,137.33,137.23,21.05742323]
[1725994261788,18.805,137.33,137.23,21.05742323]
[1725994262297,18.805,137.33,137.23,17.48]
[1725994264500,18.805,137.33,137.22,3.60911081]
[1725994264698,17.48,137.3,137.21,17.6125]
[1725994264893,17.48,137.3,137.21,21.16697147]
[1725994265888,1.325,137.33,137.21,21.16697147]
[1725994268996,1.325,137.33,137.2,0.0928]
[1725994268997,17.48,137.29,137.19,17.48]
[1725994269197,1.3059,137.28,137.19,17.48]
[1725994269598,1.3059,137.28,137.19,21.0428917]
[1725994271700,4.9479,137.28,137.19,21.0428917]
[1725994272098,4.9479,137.28,137.17,17.48]
[1725994272099,17.48,137.27,137.17,17.48]
[1725994272304,20.0916,137.27,137.18,3.70334682]
[1725994272502,23.7339,137.27,137.17,17.48]
[1725994273109,23.7339,137.27,137.17,21.05107142]
[1725994273304,20.0916,137.27,137.17,21.05107142]
[1725994273499,1.3405,137.27,137.19,17.48]
[1725994274203,1.3405,137.27,137.19,21.08860411]
[1725994274800,17.48,137.33,137.21,17.48]
[1725994275007,20.1558,137.33,137.21,17.48]
[1725994275205,3.641,137.32,137.23,17.48]
[1725994275508,20.1558,137.33,137.23,17.48]
[1725994275702,23.7966,137.33,137.23,17.48]
[1725994276703,20.1558,137.33,137.23,17.48]
[1725994277504,3.6411,137.32,137.23,17.48]
[1725994278104,3.6412,137.31,137.23,17.48]
[1725994278609,20.1558,137.33,137.23,17.48]
[1725994279404,23.7967,137.33,137.23,17.48]
[1725994279611,20.1558,137.33,137.23,17.48]
[1725994279811,2.6758,137.33,137.23,17.48]
[1725994280207,2.6758,137.33,137.24,17.48]
[1725994280811,6.3165,137.33,137.24,17.48]
[1725994281112,2.6758,137.33,137.24,17.48]
[1725994281704,17.48,137.32,137.22,17.48]
[1725994281906,17.48,137.31,137.22,17.48]
[1725994282307,3.6415,137.3,137.22,17.48]
[1725994282502,17.48,137.31,137.22,17.48]
[1725994283111,17.48,137.31,137.2,17.7021]
[1725994283409,17.48,137.29,137.2,17.48]
[1725994283615,17.48,137.29,137.19,3.60860411]
[1725994283806,17.48,137.29,137.18,17.48]
[1725994283807,1.3466,137.28,137.18,17.48]
[1725994284000,5.01389816,137.28,137.19,3.62503643]
[1725994284200,2.6025,137.27,137.19,3.62503643]
[1725994284512,2.6025,137.27,137.18,17.48]
[1725994284710,3.6425,137.26,137.18,17.48]
[1725994284910,2.6025,137.27,137.18,21.12968292]
[1725994285613,6.2449,137.27,137.18,21.12968292]
[1725994285804,2.6025,137.27,137.18,21.12968292]
[1725994286713,6.2448,137.27,137.18,21.12968292]
[1725994287018,20.0825,137.27,137.16,17.48]
[1725994289017,17.48,137.25,137.16,17.48]
[1725994290310,20.0825,137.27,137.16,17.48]
[1725994291317,20.0825,137.27,137.18,17.48]
[1725994291520,2.6025,137.27,137.18,17.48]
[1725994291814,2.6025,137.27,137.2,17.48]
[1725994292814,2.6025,137.27,137.2,21.10277854]
[1725994297209,1.282,137.27,137.2,21.10277854]
[1725994297413,1.3877,137.3,137.2,21.10277854]
[1725994297613,1.3877,137.3,137.22,17.48]
[1725994298106,1.3877,137.3,137.23,3.72859121]
[1725994298617,1.3877,137.3,137.24,17.48]
[1725994298916,1.3713,137.32,137.24,17.48]